bitfinex/quotes_BTCUSD_20251219
["timestamp","ask_amount","ask_price","bid_price","bid_amount"]
[1766126579120,0.0003653,87194.0,87183.0,0.44353012]
[1766126579540,0.0003653,87194.0,87184.0,0.01146999]
[1766126579977,0.0003653,87194.0,87186.0,0.01146973]
[1766126580174,0.0003653,87194.0,87184.0,0.01146999]
[1766126580390,0.0003653,87194.0,87185.0,0.05051578]
[1766126580590,0.0003653,87194.0,87186.0,0.65881]
[1766126581590,0.0003653,87194.0,87183.0,0.00576]
[1766126581915,0.0003653,87194.0,87184.0,0.00576]
[1766126582281,0.0003653,87194.0,87178.0,0.23251]
[1766126582517,0.0003653,87194.0,87179.0,0.00576]
[1766126583244,0.0003653,87194.0,87180.0,0.01147052]
[1766126583779,0.0003653,87194.0,87181.0,0.01147038]
[1766126584182,0.0003653,87194.0,87180.0,0.01147052]
[1766126584412,0.0003653,87194.0,87181.0,0.01147038]
[1766126585304,0.0003653,87194.0,87182.0,0.01147025]
[1766126585433,0.0003653,87194.0,87183.0,0.01147012]
[1766126585634,0.0003653,87194.0,87184.0,0.01146999]
[1766126585837,0.0003653,87194.0,87185.0,0.00576]
[1766126587910,0.0003653,87194.0,87185.0,0.25773]
[1766126588324,0.0003653,87194.0,87185.0,0.00576]
[1766126592973,0.001099,87185.0,87168.0,0.26344209]
[1766126593178,0.001099,87185.0,87169.0,0.00576]
[1766126593579,0.01377011,87190.0,87169.0,0.00576]
[1766126593822,0.06697571,87190.0,87169.0,0.00576]
[1766126594004,0.06697571,87190.0,87169.0,0.25773]
[1766126594199,0.01183397,87194.0,87171.0,0.0114717]
[1766126594423,0.0003653,87194.0,87171.0,0.0114717]
[1766126594603,0.01183397,87194.0,87171.0,0.0114717]
[1766126595007,0.0003653,87194.0,87172.0,0.01147157]
[1766126595207,0.01146881,87193.0,87170.0,0.26344183]
[1766126595544,0.01146907,87191.0,87170.0,0.25197]
[1766126595752,0.01146894,87192.0,87170.0,0.25197]
[1766126596826,0.01146894,87192.0,87170.0,0.26344183]
[1766126597025,0.01146894,87192.0,87170.0,0.25197]
[1766126597426,0.01146894,87192.0,87170.0,0.26344183]
[1766126598029,0.01146881,87193.0,87170.0,0.26344183]
[1766126598236,0.01183397,87194.0,87171.0,0.0114717]
[1766126598431,0.01152118,87194.0,87171.0,0.0114717]
[1766126598643,0.01146881,87193.0,87170.0,0.26344183]
[1766126599333,0.01146894,87192.0,87170.0,0.25197]
[1766126599539,0.01146907,87191.0,87170.0,0.25197]
[1766126599710,0.01146933,87189.0,87170.0,0.25197]
[1766126599916,0.0114692,87190.0,87170.0,0.25197]
[1766126600548,0.01146933,87189.0,87170.0,0.25197]
[1766126601139,0.0114692,87190.0,87170.0,0.25197]
[1766126601355,0.24084853,87192.0,87170.0,0.25197]
[1766126601569,0.0114692,87190.0,87170.0,0.25197]
[1766126601735,0.0114692,87190.0,87169.0,0.00576]
[1766126601972,0.01146933,87189.0,87169.0,0.00576]
[1766126602173,0.01146959,87187.0,87166.0,0.43958]
[1766126602392,0.01146986,87185.0,87167.0,0.00576]
[1766126602591,0.01377011,87184.0,87167.0,0.00576]
[1766126602767,0.01146933,87189.0,87167.0,0.00576]
[1766126602969,0.01146946,87188.0,87167.0,0.00576]
[1766126603376,0.01377011,87187.0,87167.0,0.00576]
[1766126603578,0.0252397,87187.0,87167.0,0.00576]
[1766126603786,0.01377011,87187.0,87167.0,0.00576]
[1766126604138,0.01377011,87188.0,87167.0,0.00576]
[1766126604678,0.02523957,87188.0,87167.0,0.00576]
[1766126605088,0.01146959,87187.0,87167.0,0.00576]
[1766126605285,0.01377011,87186.0,87167.0,0.00576]
[1766126605490,0.01146973,87186.0,87167.0,0.00576]
[1766126605703,0.0252397,87187.0,87167.0,0.00576]
[1766126606614,0.01377011,87187.0,87167.0,0.00576]
[1766126606814,0.01377011,87188.0,87167.0,0.00576]
[1766126608075,0.01146973,87186.0,87167.0,0.00576]
[1766126608316,0.01146959,87187.0,87167.0,0.00576]
[1766126608670,0.06851261,87190.0,87168.0,0.74206578]
[1766126609080,0.06851261,87190.0,87171.0,0.0114717]
[1766126610326,0.01799683,87190.0,87176.0,0.01147104]
[1766126610534,0.01799683,87190.0,87177.0,0.01723091]
[1766126610733,0.01799683,87190.0,87177.0,0.00576]
[1766126612187,0.00576,87191.0,87177.0,0.00576]
[1766126615431,0.01799714,87188.0,87177.0,0.00576]
[1766126615831,0.01799714,87188.0,87178.0,0.24013]
[1766126616232,0.01799714,87188.0,87177.0,0.00576]
[1766126618357,0.01799714,87188.0,87177.0,0.01723091]
[1766126618977,0.01799714,87188.0,87178.0,0.01147078]
[1766126619182,0.01799714,87188.0,87177.0,0.01723091]
[1766126619909,0.01799714,87188.0,87178.0,0.01147078]
[1766126620638,0.01799714,87188.0,87177.0,0.00576]
[1766126620947,0.01799714,87188.0,87178.0,0.01147078]
[1766126621150,0.01799714,87188.0,87179.0,0.01147065]
[1766126621349,0.01799714,87188.0,87178.0,0.01147078]
[1766126621550,0.01799714,87188.0,87179.0,0.01147065]
[1766126621750,0.01799714,87188.0,87178.0,0.01147078]
[1766126622127,0.01799714,87188.0,87184.0,0.01146999]
[1766126622330,0.01799714,87188.0,87183.0,0.25160012]
[1766126622540,5.251e-05,87194.0,87185.0,0.25159986]
[1766126622740,5.251e-05,87194.0,87186.0,0.01376367]
[1766126622941,5.251e-05,87194.0,87184.0,0.01722999]
[1766126623340,5.251e-05,87194.0,87184.0,0.00576]
[1766126624890,5.251e-05,87194.0,87184.0,0.01722999]
[1766126625248,5.251e-05,87194.0,87187.0,0.01146959]
[1766126625454,5.251e-05,87194.0,87186.0,0.25159973]
[1766126625655,5.251e-05,87194.0,87187.0,0.01146959]
[1766126626056,5.251e-05,87194.0,87188.0,0.01146946]
[1766126626476,5.251e-05,87194.0,87187.0,0.01146959]
[1766126626677,5.251e-05,87194.0,87188.0,0.01146946]
[1766126626903,5.251e-05,87194.0,87187.0,0.01146959]
[1766126627894,5.251e-05,87194.0,87187.0,0.24013]
[1766126628102,5.251e-05,87194.0,87184.0,0.00576]
[1766126628103,5.251e-05,87194.0,87184.0,0.01722999]
[1766126628448,5.251e-05,87194.0,87185.0,0.01146986]
[1766126628646,5.251e-05,87194.0,87184.0,0.01722999]
[1766126629901,5.251e-05,87194.0,87184.0,0.00576]
[1766126630696,5.251e-05,87194.0,87183.0,0.25160012]
[1766126630901,5.251e-05,87194.0,87185.0,0.00576]
[1766126632290,5.251e-05,87194.0,87186.0,0.00576]
[1766126632732,5.251e-05,87194.0,87186.0,0.004661]
[1766126634965,5.251e-05,87194.0,87187.0,0.00576]
[1766126635661,5.251e-05,87194.0,87188.0,0.00576]
[1766126641656,5.251e-05,87194.0,87187.0,0.005]
[1766126641949,5.251e-05,87194.0,87187.0,0.00576]
[1766126645806,5.251e-05,87194.0,87188.0,0.00576]
[1766126658296,5.251e-05,87194.0,87189.0,0.00576]
[1766126669728,5.251e-05,87194.0,87190.0,0.00576]
[1766126674316,5.1e-07,87194.0,87190.0,0.00576]
[1766126675548,5.1e-07,87194.0,87190.0,0.0172292]
[1766126675969,5.1e-07,87194.0,87193.0,0.6442]
[1766126676131,5.1e-07,87194.0,87193.0,0.87357621]
[1766126676331,0.03119285,87214.0,87210.0,0.22933149]
[1766126676332,5.73e-06,87211.0,87210.0,0.22933149]
[1766126676534,5.73e-06,87214.0,87212.0,0.6442]
[1766126676961,5.73e-06,87214.0,87213.0,0.01375941]
[1766126677170,0.22925761,87239.0,87234.0,0.01146342]
[1766126677171,0.0002,87237.0,87234.0,0.01146342]
[1766126677477,0.06164641,87250.0,87228.0,0.0114642]
[1766126677478,0.29283559,87254.0,87233.0,0.00576]
[1766126677686,0.01146105,87252.0,87233.0,0.00576]
[1766126677901,0.01505085,87251.0,87233.0,0.00576]
[1766126678103,0.01146118,87251.0,87233.0,0.00576]
[1766126678326,0.01146158,87248.0,87233.0,0.00576]
[1766126678446,0.01146131,87250.0,87233.0,0.00576]
[1766126678447,0.01166144,87249.0,87233.0,0.00576]
[1766126678889,0.0002,87249.0,87233.0,0.00576]
[1766126679961,0.01166144,87249.0,87233.0,0.00576]
[1766126680370,0.01146158,87248.0,87233.0,0.00576]
[1766126680568,0.01166144,87249.0,87233.0,0.00576]
[1766126681194,0.0002,87249.0,87233.0,0.00576]
[1766126681615,0.01166144,87249.0,87233.0,0.00576]
[1766126681928,0.0002,87249.0,87233.0,0.00576]
[1766126682433,0.01146158,87248.0,87233.0,0.00576]
[1766126683221,0.0002,87249.0,87233.0,0.00576]
[1766126683863,0.0002,87249.0,87235.0,0.6442]
[1766126684039,0.0002,87249.0,87239.0,0.67855116]
[1766126684219,0.01739217,87249.0,87221.0,0.22930257]
[1766126684428,0.01146158,87248.0,87227.0,0.23555]
[1766126684689,0.01146171,87247.0,87227.0,0.23555]
[1766126684826,0.01146184,87246.0,87227.0,0.23555]
[1766126685027,0.01719276,87246.0,87227.0,0.23555]
[1766126685382,0.01166144,87249.0,87228.0,0.23555]
[1766126685522,0.01166144,87249.0,87227.0,0.40865]
[1766126685523,0.0002,87249.0,87234.0,0.01146342]
[1766126685721,0.0002,87249.0,87238.0,0.23555]
[1766126686353,0.0002,87249.0,87239.0,0.01375531]
[1766126686527,0.0002,87249.0,87240.0,0.23555]
[1766126688243,0.0002,87249.0,87241.0,0.05051578]
[1766126688599,0.00596,87256.0,87241.0,0.05051578]
[1766126688600,0.00596,87256.0,87242.0,0.00576]
[1766126688925,0.00144603,87243.0,87242.0,0.00576]
[1766126689131,0.00054703,87243.0,87242.0,0.00576]
[1766126689570,0.00054703,87243.0,87242.0,0.64996]
[1766126689779,0.0002,87256.0,87244.0,0.23555]
[1766126690028,0.0002,87256.0,87247.0,0.23555]
[1766126690226,0.00025125,87251.0,87248.0,0.00576]
[1766126692335,1.25e-06,87251.0,87248.0,0.00576]
[1766126693208,1.25e-06,87251.0,87248.0,0.24131]
[1766126693428,1.25e-06,87254.0,87249.0,0.23555]
[1766126693632,1.25e-06,87254.0,87250.0,0.40865]
[1766126693839,1.25e-06,87254.0,87251.0,0.23555]
[1766126694471,1.25e-06,87254.0,87252.0,0.23555]
[1766126696000,1.25e-06,87254.0,87248.0,0.00576]
[1766126696001,0.001099,87252.0,87249.0,0.23555]
[1766126696197,1.25e-06,87254.0,87251.0,0.23555]
[1766126696650,0.00011086,87254.0,87251.0,0.23555]
[1766126696857,0.00011086,87254.0,87248.0,0.00576]
[1766126697060,0.001099,87251.0,87248.0,0.00576]
[1766126697216,0.00011086,87254.0,87248.0,0.00576]
[1766126698134,0.00011086,87254.0,87248.0,0.004661]
[1766126699844,0.00011086,87254.0,87243.0,0.40865]
[1766126700062,0.00011086,87254.0,87244.0,0.00576]
[1766126700473,0.00011086,87254.0,87244.0,0.24131]
[1766126700915,0.00011086,87254.0,87245.0,0.23555]
[1766126701089,0.00011086,87254.0,87245.0,0.6442]
[1766126702142,0.00011086,87254.0,87237.0,0.01146302]
[1766126702143,0.01146144,87249.0,87228.0,0.23555]
[1766126702348,0.0114625,87241.0,87230.0,0.01744154]
[1766126702483,0.22925259,87241.0,87230.0,0.01744154]
[1766126702697,0.22925259,87241.0,87231.0,0.00576]
[1766126702698,0.01146289,87238.0,87231.0,0.00576]
[1766126702919,0.01146276,87239.0,87231.0,0.00576]
[1766126703103,0.01146236,87242.0,87231.0,0.00576]
[1766126703306,0.01146276,87239.0,87231.0,0.00576]
[1766126703523,0.01146276,87239.0,87223.0,0.23555]
[1766126703524,0.01719375,87241.0,87229.0,0.00576]
[1766126703739,0.01146236,87242.0,87229.0,0.00576]
[1766126703956,0.01719375,87241.0,87221.0,0.03445335]
[1766126704158,0.01146263,87240.0,87220.0,0.66019]
[1766126704404,0.01146223,87243.0,87221.0,0.00576]
[1766126704607,0.0114625,87241.0,87223.0,0.25154]
[1766126704776,0.00576,87245.0,87225.0,0.25154]
[1766126704994,0.0114621,87244.0,87225.0,0.25154]
[1766126705835,0.01722197,87245.0,87227.0,0.67421]
[1766126705836,0.00576,87245.0,87227.0,0.67421]
[1766126706013,0.00576,87252.0,87238.0,0.4313]
[1766126706376,0.00576,87252.0,87234.0,0.22926825]
[1766126706377,0.005664,87252.0,87241.0,0.24291]
[1766126706941,0.00011086,87254.0,87247.0,0.01146171]
[1766126707120,0.00011086,87254.0,87248.0,0.24291]
[1766126707323,0.00011086,87254.0,87249.0,0.01375373]
[1766126707571,0.00011086,87254.0,87248.0,0.24291]
[1766126708470,0.00011086,87254.0,87246.0,0.00576]
[1766126709481,0.00011086,87254.0,87247.0,0.24291]
[1766126710758,0.00011086,87254.0,87249.0,0.24291]
[1766126710963,8.6e-07,87254.0,87251.0,0.24291]
[1766126711138,8.6e-07,87254.0,87252.0,0.00433349]
[1766126711349,8.6e-07,87254.0,87252.0,0.24724349]
[1766126714420,2.2e-06,87259.0,87256.0,0.25437052]
[1766126714605,2.2e-06,87259.0,87258.0,0.72472578]
[1766126715016,2.2e-06,87259.0,87258.0,0.72931772]
[1766126716003,2.2e-06,87259.0,87258.0,0.95852306]
[1766126716203,2.2e-06,87259.0,87258.0,0.72931772]
[1766126716806,2.2e-06,87259.0,87258.0,0.67880194]
[1766126717004,2.2e-06,87259.0,87258.0,0.67770294]
[1766126717212,2.2e-06,87259.0,87258.0,0.01035194]
[1766126717478,2.2e-06,87259.0,87249.0,0.4313]
[1766126717614,2.2e-06,87259.0,87252.0,0.0114575]
[1766126717844,2.2e-06,87259.0,87250.0,0.00576]
[1766126718007,2.2e-06,87259.0,87251.0,0.01145921]
[1766126718412,2.2e-06,87259.0,87249.0,0.4313]
[1766126718620,2.2e-06,87259.0,87250.0,0.00576]
[1766126719125,2.2e-06,87259.0,87251.0,0.25437118]
[1766126719299,2.2e-06,87259.0,87252.0,0.24291]
[1766126720472,2.2e-06,87259.0,87254.0,0.24291]
[1766126720601,2.2e-06,87259.0,87255.0,0.00576]
[1766126721229,2.2e-06,87259.0,87241.0,0.48181578]
[1766126721435,2.2e-06,87259.0,87243.0,0.02864803]
[1766126721840,2.2e-06,87259.0,87244.0,0.00576]
[1766126722767,2.2e-06,87259.0,87242.0,0.01718961]
[1766126723088,2.2e-06,87259.0,87241.0,0.67431961]
[1766126723089,0.01146052,87256.0,87241.0,0.00010961]
[1766126723286,0.22920534,87258.0,87242.0,0.00576]
[1766126723458,0.01146233,87259.0,87242.0,0.00576]
[1766126723673,2.2e-06,87259.0,87242.0,0.00576]
[1766126723828,2.2e-06,87259.0,87243.0,0.67421]
[1766126726112,0.01146233,87259.0,87243.0,0.67421]
[1766126726294,0.01146026,87258.0,87242.0,0.00576]
[1766126726504,0.01146039,87257.0,87242.0,0.00576]
[1766126726861,0.01146052,87256.0,87242.0,0.00576]
[1766126727056,0.01146039,87257.0,87242.0,0.00576]
[1766126727588,0.01146092,87253.0,87242.0,0.00576]
[1766126727706,0.02865263,87252.0,87241.0,0.00010961]
[1766126728130,0.01146118,87251.0,87240.0,0.00576]
[1766126728423,0.01719197,87250.0,87232.0,0.03444947]
[1766126728649,0.01719197,87250.0,87224.0,0.24291]
[1766126728650,0.02865328,87250.0,87224.0,0.24291]
[1766126728779,0.00010946,87251.0,87227.0,0.05051578]
[1766126728990,0.01157064,87251.0,87228.0,0.2543742]
[1766126729194,0.01157064,87251.0,87228.0,0.0114642]
[1766126729391,0.00010946,87251.0,87231.0,0.24291]
[1766126729621,0.00010946,87251.0,87232.0,0.24291]
[1766126730041,0.00010946,87251.0,87235.0,0.24291]
[1766126731844,0.00010946,87251.0,87236.0,0.24291]
[1766126732610,0.00010946,87251.0,87235.0,0.4313]
[1766126734850,0.00010946,87251.0,87235.0,0.67421]
[1766126735650,0.00010946,87251.0,87233.0,0.25769]
[1766126737106,0.00010946,87251.0,87233.0,0.26915355]
[1766126737312,0.00010946,87251.0,87233.0,0.25769]
[1766126737521,0.00010946,87251.0,87233.0,0.26915355]
[1766126737725,0.00010946,87251.0,87234.0,0.25193]
[1766126741349,0.00010946,87251.0,87236.0,0.01146315]
[1766126741549,0.00010946,87251.0,87238.0,0.40814]
[1766126741817,0.00010946,87251.0,87238.0,0.4139]
[1766126742392,4.6e-07,87251.0,87241.0,0.40814]
[1766126742593,4.6e-07,87251.0,87243.0,0.25193]
[1766126742910,4.6e-07,87251.0,87244.0,0.00576]
[1766126743157,4.6e-07,87251.0,87244.0,0.25769]
[1766126743342,4.6e-07,87251.0,87245.0,0.25193]
[1766126743476,4.6e-07,87251.0,87247.0,0.25193]
[1766126743926,4.6e-07,87251.0,87244.0,0.00576]
[1766126745500,4.6e-07,87251.0,87249.0,0.40814]
[1766126745704,4.6e-07,87251.0,87249.0,0.00576]
[1766126748937,4.6e-07,87251.0,87249.0,0.005651]
[1766126750741,4.6e-07,87251.0,87233.0,0.01146355]
[1766126750941,4.6e-07,87251.0,87241.0,0.0114625]
[1766126751145,4.6e-07,87251.0,87244.0,0.40814]
[1766126751364,4.6e-07,87251.0,87245.0,0.25193]
[1766126753155,4.6e-07,87251.0,87245.0,0.25769]
[1766126753357,4.6e-07,87251.0,87245.0,0.00576]
[1766126753861,4.6e-07,87251.0,87242.0,0.00576]
[1766126758754,4.6e-07,87251.0,87233.0,0.67153355]
[1766126758895,4.6e-07,87251.0,87234.0,0.00576]
[1766126759512,4.6e-07,87251.0,87234.0,0.25769]
[1766126760568,4.6e-07,87251.0,87235.0,0.00576]
[1766126760785,0.01146144,87249.0,87229.0,0.25193]
[1766126760955,0.22922636,87250.0,87229.0,0.25193]
[1766126760956,0.01719237,87248.0,87230.0,0.00576]
[1766126761158,0.01719217,87249.0,87230.0,0.00576]
[1766126761358,0.01719217,87249.0,87230.0,0.68356433]
[1766126761650,0.01719217,87249.0,87230.0,0.00576]
[1766126762500,0.01719217,87249.0,87230.0,0.01722394]
[1766126762690,4.6e-07,87251.0,87233.0,0.25193]
[1766126762886,4.6e-07,87251.0,87240.0,0.67780433]
[1766126764973,4.6e-07,87251.0,87236.0,0.00576]
[1766126765174,0.01719224,87251.0,87236.0,0.00576]
[1766126765420,0.02865342,87251.0,87236.0,0.00576]
[1766126765625,0.01719224,87251.0,87236.0,0.00576]
[1766126766330,0.01719197,87250.0,87236.0,0.00576]
[1766126766504,4.6e-07,87251.0,87236.0,0.00576]
[1766126766710,0.01719224,87251.0,87236.0,0.00576]
[1766126767115,0.03441342,87251.0,87236.0,0.00576]
[1766126767987,0.01146131,87250.0,87236.0,0.00576]
[1766126768188,0.01719217,87249.0,87236.0,0.00576]
[1766126768373,0.01722164,87251.0,87236.0,0.00576]
[1766126768374,0.01719197,87250.0,87236.0,0.00576]
[1766126769020,0.01146144,87249.0,87221.0,0.22932]
[1766126769335,0.240708,87243.0,87223.0,0.00576]
[1766126769540,0.01722236,87242.0,87223.0,0.00576]
[1766126769922,0.01146263,87240.0,87223.0,0.00576]
[1766126770449,0.01719414,87239.0,87223.0,0.00576]
[1766126770661,0.01146289,87238.0,87224.0,0.00576]
[1766126770885,0.0114625,87241.0,87224.0,0.00576]
[1766126771074,0.01722236,87242.0,87224.0,0.00576]
[1766126771514,0.01146263,87240.0,87224.0,0.00576]
[1766126771714,0.01146276,87239.0,87224.0,0.00576]
[1766126773297,0.01146302,87237.0,87224.0,0.00576]
[1766126773513,0.01146328,87235.0,87224.0,0.00576]
[1766126773719,0.01719513,87234.0,87224.0,0.00576]
[1766126773945,0.01146328,87235.0,87224.0,0.00576]
[1766126774280,0.01146315,87236.0,87221.0,0.00576]
[1766126774412,0.01146328,87235.0,87221.0,0.00576]
[1766126774615,0.01146315,87236.0,87221.0,0.00576]
[1766126775223,0.01146302,87237.0,87221.0,0.00576]
[1766126776036,0.01146315,87236.0,87220.0,0.67780433]
[1766126776183,0.00576,87235.0,87220.0,0.68356433]
[1766126776387,0.00576,87235.0,87210.0,0.67780433]
[1766126776548,0.01146381,87231.0,87211.0,0.00576]
[1766126776755,0.01719591,87230.0,87211.0,0.00576]
[1766126776959,0.01146368,87232.0,87211.0,0.00576]
[1766126777188,0.22928417,87228.0,87207.0,0.00576]
[1766126777398,0.67780433,87230.0,87207.0,0.00576]
[1766126777399,0.01146486,87223.0,87207.0,0.00576]
[1766126777618,0.0114646,87225.0,87207.0,0.00576]
[1766126778038,0.01146473,87224.0,87207.0,0.00576]
[1766126778502,0.01146473,87224.0,87207.0,0.00586899]
[1766126779547,0.0114646,87225.0,87207.0,0.00586899]
[1766126781540,0.0114646,87225.0,87207.0,0.00010899]
[1766126782021,0.01146447,87226.0,87207.0,0.00010899]
[1766126783315,0.00576,87227.0,87210.0,0.67780433]
[1766126783560,0.00576,87227.0,87212.0,0.01146631]
[1766126783788,0.00576,87227.0,87210.0,0.67780433]
[1766126784028,0.00576,87227.0,87209.0,0.22932]
[1766126784219,0.00576,87227.0,87210.0,0.67780433]
[1766126784977,0.00576,87227.0,87210.0,0.6892709]
[1766126785182,0.004661,87227.0,87218.0,0.22932]
[1766126785947,0.004661,87227.0,87217.0,0.67780433]
[1766126786181,0.08037929,87236.0,87219.0,0.22932]
[1766126786424,0.00576,87235.0,87220.0,0.22932]
[1766126786591,0.00576,87235.0,87219.0,0.43267]
[1766126786769,0.00576,87235.0,87219.0,0.01146539]
[1766126786978,0.00576,87235.0,87219.0,0.66199]
[1766126787235,0.00576,87235.0,87220.0,0.67780433]
[1766126787606,0.00576,87235.0,87220.0,0.91858959]
[1766126787805,0.00576,87235.0,87221.0,0.01146512]
[1766126787990,0.00576,87235.0,87223.0,0.01146486]
[1766126788190,0.00576,87235.0,87226.0,0.22932]
[1766126788393,0.00576,87235.0,87226.0,0.24078447]
[1766126788973,0.00576,87235.0,87226.0,0.22932]
[1766126789114,0.00576,87235.0,87226.0,0.24078447]
[1766126789319,0.00576,87235.0,87227.0,0.01146434]
[1766126789518,0.24068217,87253.0,87227.0,0.01146434]
[1766126789519,0.02471214,87252.0,87233.0,0.22932]
[1766126789717,0.00576,87251.0,87240.0,0.67780433]
[1766126791426,0.001099,87240.0,87233.0,0.23508]
[1766126791637,0.00576,87251.0,87233.0,0.00576]
[1766126792268,0.00576,87251.0,87242.0,0.01146236]
[1766126792469,0.00576,87251.0,87245.0,0.66199]
[1766126792890,0.00576,87251.0,87245.0,0.67345197]
[1766126793096,0.00576,87251.0,87245.0,0.66199]
[1766126793302,0.00576,87251.0,87245.0,0.67345197]
[1766126793718,0.00576,87251.0,87245.0,0.66199]
[1766126794124,0.00576,87251.0,87245.0,0.67345197]
[1766126794282,0.04592,87257.0,87245.0,0.67345197]
[1766126794492,0.04592,87257.0,87247.0,0.67780433]
[1766126795654,0.04592,87257.0,87245.0,0.66199]
[1766126795862,0.04592,87257.0,87240.0,0.68926696]
[1766126796091,0.04592,87257.0,87240.0,0.67780433]
[1766126796733,0.04592,87257.0,87240.0,0.68926696]
[1766126797272,0.00576,87258.0,87242.0,0.01146236]
[1766126797487,2.2e-06,87259.0,87250.0,0.43393]
[1766126797695,2.2e-06,87259.0,87251.0,0.23162]
[1766126798116,2.2e-06,87259.0,87250.0,0.43393]
[1766126798774,2.2e-06,87259.0,87249.0,0.67780433]
[1766126799826,2.2e-06,87259.0,87249.0,0.92088577]
[1766126800196,2.2e-06,87259.0,87250.0,0.02521489]
[1766126800408,2.2e-06,87259.0,87250.0,0.01375358]
[1766126801721,2.2e-06,87259.0,87249.0,0.90942433]
[1766126802921,2.2e-06,87259.0,87249.0,0.67670533]
[1766126803402,2.2e-06,87259.0,87248.0,0.00576]
[1766126804014,2.2e-06,87259.0,87249.0,0.67780433]
[1766126810412,0.01146118,87251.0,87232.0,0.43393]
[1766126810594,0.01146171,87247.0,87230.0,0.67780433]
[1766126810793,0.01146171,87247.0,87230.0,0.67791332]
[1766126810794,0.01146197,87245.0,87230.0,0.67791332]
[1766126810991,0.01719315,87244.0,87231.0,0.00576]
[1766126811215,0.02865525,87244.0,87231.0,0.00576]
[1766126811416,0.02295315,87244.0,87231.0,0.00576]
[1766126812017,0.01146223,87243.0,87231.0,0.00576]
[1766126812351,0.01719355,87242.0,87231.0,0.00576]
[1766126812779,0.01719335,87243.0,87231.0,0.00576]
[1766126813130,0.01719335,87243.0,87230.0,0.67791332]
[1766126813131,0.02865558,87243.0,87230.0,0.67791332]
[1766126813339,0.01146223,87243.0,87230.0,0.67791332]
[1766126813832,0.0172221,87244.0,87230.0,0.67791332]
[1766126814215,0.00576,87244.0,87230.0,0.67791332]
[1766126819851,0.00576,87244.0,87234.0,0.43393]
[1766126820031,0.00576,87244.0,87231.0,0.66555]
[1766126820238,0.00576,87244.0,87235.0,0.43393]
[1766126820464,0.01146171,87253.0,87237.0,0.43393]
[1766126820663,0.01146171,87253.0,87235.0,0.01722328]
[1766126820664,0.00576,87251.0,87240.0,0.90942433]
[1766126820877,2.2e-06,87259.0,87240.0,0.90942433]
[1766126821240,0.00576,87258.0,87243.0,0.23162]
[1766126822967,0.01722026,87258.0,87243.0,0.23162]
[1766126823301,0.00576,87258.0,87243.0,0.23162]
[1766126825717,0.01146066,87255.0,87243.0,0.23162]
[1766126825937,0.01146066,87255.0,87230.0,0.67774624]
[1766126825938,0.001099,87243.0,87231.0,0.00576]
[1766126826137,0.22923462,87247.0,87231.0,0.00576]
[1766126826138,0.01146197,87245.0,87231.0,0.00576]
[1766126826364,0.00576,87246.0,87231.0,0.41586]
[1766126826681,0.00576,87246.0,87239.0,0.23617]
[1766126826869,0.00576,87246.0,87240.0,0.42961515]
[1766126827073,0.00576,87246.0,87241.0,0.41586]
[1766126827698,0.01146233,87259.0,87241.0,0.65203]
[1766126828020,0.00576,87253.0,87241.0,0.0114625]
[1766126828237,0.00576,87253.0,87244.0,0.41586]
[1766126828451,0.00576,87253.0,87245.0,0.23617]
[1766126828673,0.00576,87253.0,87246.0,0.24992421]
[1766126828872,0.00576,87253.0,87246.0,0.23617]
[1766126829074,0.00576,87253.0,87248.0,0.23617]
[1766126829373,0.00576,87253.0,87249.0,0.23617]
[1766126829869,0.00576,87253.0,87248.0,0.41586]
[1766126830220,0.00576,87253.0,87244.0,0.23617]
[1766126831020,0.00576,87253.0,87244.0,0.65203]
[1766126831213,0.00576,87253.0,87245.0,0.23617]
[1766126831428,2.2e-06,87259.0,87248.0,0.23617]
[1766126832414,2.2e-06,87259.0,87246.0,0.00576]
[1766126832618,0.01146039,87257.0,87246.0,0.00576]
[1766126832822,0.001099,87246.0,87243.0,0.00576]
[1766126833034,0.001099,87246.0,87234.0,0.23617]
[1766126833238,0.02865197,87254.0,87235.0,0.00576]
[1766126833481,0.01719118,87254.0,87235.0,0.00576]
[1766126833707,0.02865197,87254.0,87235.0,0.24193]
[1766126833943,0.01146079,87254.0,87236.0,0.00576]
[1766126834528,2.2e-06,87259.0,87240.0,0.67763725]
[1766126834706,2.2e-06,87259.0,87241.0,0.23617]
[1766126834915,0.01146092,87253.0,87241.0,0.23617]
[1766126835137,0.01146052,87256.0,87237.0,0.00576]
[1766126835509,0.01146066,87255.0,87237.0,0.00576]
[1766126836288,0.01146052,87256.0,87240.0,0.67763725]
[1766126836456,0.01146066,87255.0,87240.0,0.67763725]
[1766126837558,0.01146039,87257.0,87240.0,0.67763725]
[1766126838341,0.01146052,87256.0,87240.0,0.67763725]
[1766126838536,0.01146039,87257.0,87240.0,0.67763725]
[1766126839396,2.2e-06,87259.0,87242.0,0.01146236]
[1766126839597,2.2e-06,87259.0,87241.0,0.23617]
[1766126840929,2.2e-06,87259.0,87241.0,0.2476325]
[1766126841155,2.2e-06,87259.0,87244.0,0.41586]
[1766126841368,2.2e-06,87259.0,87246.0,0.23617]
[1766126842325,2.2e-06,87259.0,87247.0,0.66578405]
[1766126842525,2.2e-06,87259.0,87247.0,0.65203]
[1766126842950,2.2e-06,87259.0,87247.0,0.41586]
[1766126843150,2.2e-06,87259.0,87243.0,0.24193]
[1766126843782,2.2e-06,87259.0,87247.0,0.23617]
[1766126845783,2.2e-06,87259.0,87243.0,0.00576]
[1766126848064,2.2e-06,87259.0,87243.0,0.01722223]
[1766126848634,2.2e-06,87259.0,87243.0,0.00576]
[1766126848831,2.2e-06,87259.0,87245.0,0.65203]
[1766126849040,2.2e-06,87259.0,87247.0,0.23617]
[1766126851507,2.2e-06,87259.0,87246.0,0.41586]
[1766126854728,2.2e-06,87259.0,87243.0,0.24193]
[1766126854929,2.2e-06,87259.0,87244.0,0.4273221]
[1766126855162,2.2e-06,87259.0,87246.0,0.23617]
[1766126857151,2.2e-06,87259.0,87248.0,0.24651]
[1766126860524,2.2e-06,87259.0,87247.0,0.42533]
[1766126860764,2.2e-06,87259.0,87250.0,0.24651]
[1766126860969,2.2e-06,87259.0,87252.0,0.24651]
[1766126861180,2.2e-06,87259.0,87253.0,0.0137531]
[1766126861586,2.2e-06,87259.0,87253.0,0.2602631]
[1766126861789,2.2e-06,87259.0,87253.0,0.24651]
[1766126863064,2.2e-06,87259.0,87251.0,0.42533]
[1766126864455,2.2e-06,87259.0,87252.0,0.24651]
[1766126865227,2.2e-06,87259.0,87254.0,0.24651]
[1766126865429,2.2e-06,87259.0,87255.0,0.24651]
[1766126866922,2.2e-06,87259.0,87254.0,0.42533]
[1766126868289,2.2e-06,87259.0,87250.0,0.25227]
[1766126872061,2.2e-06,87259.0,87251.0,0.01146118]
[1766126872264,2.2e-06,87259.0,87254.0,0.01146079]